[Event "Esbjerg Efterår 2021 - Esbjergmesterskabet"]
[Site "Esbjerg, Denmark"]
[Date "2021.10.23"]
[Round "5.2"]
[White "Eriksson, Christian Altenburg"]
[Black "Medhus, Vitus Bondo"]
[Result "1-0"]
[TimeControl "1.-3. 20 min + 5 sek, 4.-7. 90 min + 30 sek"]
[WhiteElo "2135"]
[BlackElo "1875"]

1. e4 {[%clk 01:30:58]} {[%emt 00:00:02]} c5 {[%clk 01:30:53]} {[%emt
00:00:07]} 2. Nc3 {[%clk 01:31:19]} {[%emt 00:00:06]} Nc6 {[%clk 01:31:09]}
{[%emt 00:00:18]} 3. Bb5 {[%clk 01:31:33]} {[%emt 00:00:15]} Nd4 {[%clk
01:31:32]} {[%emt 00:00:07]} 4. Nf3 {[%clk 01:31:53]} {[%emt 00:00:11]} g6
{[%clk 01:31:47]} {[%emt 00:00:15]} 5. Nxd4 {[%clk 01:31:31]} {[%emt 00:00:52]}
cxd4 {[%clk 01:32:08]} {[%emt 00:00:08]} 6. Ne2 {[%clk 01:31:51]} {[%emt
00:00:10]} Bg7 {[%clk 01:32:25]} {[%emt 00:00:14]} 7. O-O {[%clk 01:31:57]}
{[%emt 00:00:23]} e6 {[%clk 01:31:30]} {[%emt 00:01:25]} 8. c3 {[%clk
01:31:14]} {[%emt 00:01:12]} e5 {[%clk 01:24:54]} {[%emt 00:07:07]} 9. cxd4
{[%clk 01:29:23]} {[%emt 00:02:20]} exd4 {[%clk 01:25:17]} {[%emt 00:00:08]} 10.
d3 {[%clk 01:28:49]} {[%emt 00:01:04]} Ne7 {[%clk 01:24:46]} {[%emt 00:01:01]}
11. Bg5 {[%clk 01:24:09]} {[%emt 00:05:10]} h6 {[%clk 01:24:01]} {[%emt
00:01:15]} 12. Bh4 {[%clk 01:22:27]} {[%emt 00:02:12]} Qb6 {[%clk 01:18:39]}
{[%emt 00:05:54]} 13. Bc4 {[%clk 01:18:20]} {[%emt 00:04:35]} Qxb2 {[%clk
01:18:07]} {[%emt 00:01:01]} 14. Bxe7 {[%clk 01:14:19]} {[%emt 00:04:32]} Kxe7
{[%clk 01:18:08]} {[%emt 00:00:29]} 15. Nf4 {[%clk 01:13:11]} {[%emt 00:01:38]}
Rf8 {[%clk 01:08:31]} {[%emt 00:10:06]} 16. Qa4 {[%clk 01:05:34]} {[%emt
00:08:08]} Be5 {[%clk 01:01:44]} {[%emt 00:07:17]} 17. Nd5+ {[%clk 01:01:05]}
{[%emt 00:04:59]} Kd8 {[%clk 00:58:58]} {[%emt 00:03:17]} 18. Rab1 {[%clk
00:54:26]} {[%emt 00:07:08]} Qe2 {[%clk 00:57:16]} {[%emt 00:02:11]} 19. Qa5+
{[%clk 00:48:58]} {[%emt 00:05:58]} Ke8 {[%clk 00:52:56]} {[%emt 00:04:51]} 20.
Qc5 {[%clk 00:47:25]} {[%emt 00:03:29]} 1-0

[Event "Esbjerg Efterår 2021 - Esbjergmesterskabet"]
[Site "Esbjerg, Denmark"]
[Date "2021.10.23"]
[Round "5.3"]
[White "Jensen, Henrik Tranberg"]
[Black "Jarlnæs, Erik"]
[Result "1/2-1/2"]
[TimeControl "1.-3. 20 min + 5 sek, 4.-7. 90 min + 30 sek"]
[WhiteElo "1960"]
[BlackElo "1952"]

1. d4 {[%clk 01:30:57]} {[%emt 00:00:02]} Nf6 {[%clk 01:30:53]} {[%emt
00:00:08]} 2. c4 {[%clk 01:31:21]} {[%emt 00:00:06]} e6 {[%clk 01:31:14]}
{[%emt 00:00:09]} 3. Nf3 {[%clk 01:31:48]} {[%emt 00:00:02]} d5 {[%clk
01:31:02]} {[%emt 00:00:43]} 4. Nc3 {[%clk 01:31:52]} {[%emt 00:00:25]} c5
{[%clk 01:27:41]} {[%emt 00:03:52]} 5. Bg5 {[%clk 01:27:20]} {[%emt 00:05:01]}
cxd4 {[%clk 01:23:48]} {[%emt 00:04:24]} 6. Nxd4 {[%clk 01:27:35]} {[%emt
00:00:15]} Be7 {[%clk 01:21:49]} {[%emt 00:02:29]} 7. g3 {[%clk 01:23:21]}
{[%emt 00:04:44]} Nc6 {[%clk 01:11:05]} {[%emt 00:11:14]} 8. Bg2 {[%clk
01:16:38]} {[%emt 00:07:12]} O-O {[%clk 01:10:05]} {[%emt 00:01:31]} 9. O-O
{[%clk 01:16:39]} {[%emt 00:00:29]} h6 {[%clk 00:58:19]} {[%emt 00:12:16]} 10.
Bf4 {[%clk 01:13:01]} {[%emt 00:04:07]} a6 {[%clk 00:46:43]} {[%emt 00:12:07]}
11. Rc1 {[%clk 01:10:03]} {[%emt 00:03:27]} Bd6 {[%clk 00:39:57]} {[%emt
00:07:16]} 12. cxd5 {[%clk 01:06:53]} {[%emt 00:03:41]} Bxf4 {[%clk 00:39:32]}
{[%emt 00:00:55]} 13. dxc6 {[%emt 00:00:11]} Bxc1 {[%clk 00:39:23]} {[%emt
00:00:37]} 14. cxb7 {[%clk 01:07:42]} {[%emt 00:00:02]} Bxb7 {[%clk 00:35:07]}
{[%emt 00:04:47]} 15. Bxb7 {[%clk 01:07:19]} {[%emt 00:00:53]} Rb8 {[%clk
00:32:40]} {[%emt 00:02:57]} 16. Qxc1 {[%clk 01:04:40]} {[%emt 00:03:08]} Rxb7
{[%clk 00:32:49]} {[%emt 00:00:21]} 17. Rd1 {[%clk 01:04:59]} {[%emt 00:00:11]}
Qc7 {[%clk 00:32:49]} {[%emt 00:00:30]} 18. Nb3 {[%clk 01:03:27]} {[%emt
00:02:02]} Rc8 {[%clk 00:32:14]} {[%emt 00:01:06]} 19. Qd2 {[%clk 01:03:00]}
{[%emt 00:00:55]} Rcb8 {[%clk 00:24:17]} {[%emt 00:08:28]} 20. Rc1 {[%clk
00:53:34]} {[%emt 00:09:56]} Qd7 {[%clk 00:22:56]} {[%emt 00:01:52]} 21. Qc2
{[%clk 00:50:05]} {[%emt 00:03:57]} Rc8 {[%clk 00:22:05]} {[%emt 00:01:20]} 22.
Rd1 {[%clk 00:50:16]} {[%emt 00:00:19]} Qc7 {[%clk 00:21:33]} {[%emt 00:01:02]}
23. Qd3 {[%clk 00:49:35]} {[%emt 00:01:11]} Qb6 {[%clk 00:19:11]} {[%emt
00:02:52]} 24. Qf3 {[%clk 00:48:20]} {[%emt 00:01:44]} Rd7 {[%clk 00:17:44]}
{[%emt 00:01:59]} 25. e4 {[%clk 00:42:30]} {[%emt 00:06:20]} Rxd1+ {[%clk
00:16:54]} {[%emt 00:01:19]} 26. Qxd1 {[%clk 00:42:58]} {[%emt 00:00:02]} Rd8
{[%clk 00:16:02]} {[%emt 00:01:22]} 27. Qe2 {[%clk 00:43:14]} {[%emt 00:00:14]}
a5 {[%clk 00:15:01]} {[%emt 00:01:32]} 28. h3 {[%clk 00:40:49]} {[%emt
00:02:54]} Qb4 {[%clk 00:10:16]} {[%emt 00:05:14]} 29. e5 {[%clk 00:39:36]}
{[%emt 00:01:45]} Ne8 {[%clk 00:09:38]} {[%emt 00:01:08]} 30. Qa6 {[%clk
00:39:37]} {[%emt 00:00:28]} a4 {[%clk 00:09:46]} {[%emt 00:00:22]} 31. Qxa4
{[%clk 00:39:20]} {[%emt 00:00:47]} Qxa4 {[%clk 00:08:33]} {[%emt 00:01:44]} 32.
Nxa4 {[%clk 00:39:45]} {[%emt 00:00:04]} Rd5 {[%clk 00:07:58]} {[%emt
00:01:06]} 33. f4 {[%clk 00:31:09]} {[%emt 00:09:05]} Nc7 {[%clk 00:08:18]}
{[%emt 00:00:11]} 34. Kf2 {[%clk 00:30:42]} {[%emt 00:00:56]} Na6 {[%clk
00:07:58]} {[%emt 00:00:51]} 35. Ke2 {[%clk 00:26:26]} {[%emt 00:04:46]} Nb4
{[%clk 00:05:31]} {[%emt 00:02:57]} 36. Nc3 {[%clk 00:24:34]} {[%emt 00:02:21]}
Rd8 {[%clk 00:05:56]} {[%emt 00:00:06]} 37. Nc1 {[%emt 00:02:00]} 1/2-1/2

[Event "Esbjerg Efterår 2021 - Esbjergmesterskabet"]
[Site "Esbjerg, Denmark"]
[Date "2021.10.23"]
[Round "5.4"]
[White "Husum, Lars"]
[Black "Marcussen, Claus"]
[Result "0-1"]
[TimeControl "1.-3. 20 min + 5 sek, 4.-7. 90 min + 30 sek"]
[WhiteElo "1876"]
[BlackElo "1543"]

1. d4 {[%clk 01:30:40]} {[%emt 00:00:16]} f5 {[%clk 01:30:58]} {[%emt
00:00:06]} 2. Bf4 {[%clk 01:31:03]} {[%emt 00:00:07]} d6 {[%clk 01:31:01]}
{[%emt 00:00:27]} 3. e3 {[%clk 01:30:39]} {[%emt 00:00:54]} b6 {[%clk
01:29:49]} {[%emt 00:01:42]} 4. c3 {[%clk 01:24:51]} {[%emt 00:06:18]} Bb7
{[%clk 01:29:43]} {[%emt 00:00:36]} 5. Nf3 {[%clk 01:24:44]} {[%emt 00:00:37]}
Nf6 {[%clk 01:29:16]} {[%emt 00:00:54]} 6. Nbd2 {[%clk 01:20:33]} {[%emt
00:04:44]} e6 {[%clk 01:23:41]} {[%emt 00:06:04]} 7. Bc4 {[%clk 01:17:50]}
{[%emt 00:03:14]} Nd5 {[%clk 01:19:18]} {[%emt 00:04:52]} 8. Qe2 {[%clk
01:05:53]} {[%emt 00:12:28]} Nd7 {[%clk 01:16:14]} {[%emt 00:03:33]} 9. Ng5
{[%clk 00:59:08]} {[%emt 00:07:14]} Qf6 {[%clk 01:12:28]} {[%emt 00:04:15]} 10.
Ngf3 {[%clk 00:54:14]} {[%emt 00:05:26]} h6 {[%clk 01:05:57]} {[%emt 00:07:01]}
11. h4 {[%clk 00:54:19]} {[%emt 00:00:25]} O-O-O {[%clk 01:04:45]} {[%emt
00:01:43]} 12. Bg3 {[%clk 00:45:20]} {[%emt 00:09:29]} Qf7 {[%clk 01:01:48]}
{[%emt 00:03:26]} 13. Ba6 {[%clk 00:42:09]} {[%emt 00:03:41]} Re8 {[%clk
00:59:22]} {[%emt 00:02:56]} 14. O-O-O {[%clk 00:35:20]} {[%emt 00:07:20]} e5
{[%clk 00:54:43]} {[%emt 00:05:08]} 15. Bxb7+ {[%clk 00:34:30]} {[%emt
00:01:21]} Kxb7 {[%clk 00:55:10]} {[%emt 00:00:02]} 16. dxe5 {[%clk 00:33:59]}
{[%emt 00:01:02]} dxe5 {[%clk 00:55:02]} {[%emt 00:00:37]} 17. Qc4 {[%clk
00:32:24]} {[%emt 00:02:07]} c6 {[%clk 00:48:46]} {[%emt 00:06:43]} 18. Rhe1
{[%clk 00:27:53]} {[%emt 00:05:03]} b5 {[%clk 00:48:13]} {[%emt 00:01:02]} 19.
Qe2 {[%clk 00:24:41]} {[%emt 00:03:44]} Bd6 {[%clk 00:41:13]} {[%emt 00:07:28]}
20. e4 {[%clk 00:24:25]} {[%emt 00:00:45]} N5b6 {[%clk 00:39:55]} {[%emt
00:01:48]} 21. exf5 {[%clk 00:22:01]} {[%emt 00:02:55]} Qxa2 {[%clk 00:34:47]}
{[%emt 00:05:36]} 22. Nb1 {[%clk 00:22:22]} {[%emt 00:00:10]} Bc7 {[%clk
00:34:44]} {[%emt 00:00:32]} 23. Qc2 {[%clk 00:19:58]} {[%emt 00:02:54]} Nc5
{[%clk 00:33:56]} {[%emt 00:01:18]} 24. Qe2 {[%clk 00:09:24]} {[%emt 00:11:04]}
Nc4 {[%emt 00:08:04]} 25. Kc2 {[%emt 00:00:10]} Nb3 26. Kd3 {[%emt 00:00:08]}
Nc5+ {[%emt 00:00:01]} 0-1

[Event "Esbjerg Efterår 2021 - Esbjergmesterskabet"]
[Site "Esbjerg, Denmark"]
[Date "2021.10.23"]
[Round "5.5"]
[White "Jensen, Lars"]
[Black "Bønnelykke, Ole"]
[Result "0-1"]
[TimeControl "1.-3. 20 min + 5 sek, 4.-7. 90 min + 30 sek"]
[WhiteElo "1546"]
[BlackElo "1991"]

1. e4 {[%clk 01:30:57]} {[%emt 00:00:02]} g6 {[%clk 01:30:41]} {[%emt
00:00:20]} 2. d4 {[%clk 01:31:15]} {[%emt 00:00:11]} Bg7 {[%clk 01:31:04]}
{[%emt 00:00:06]} 3. f4 {[%clk 01:31:38]} {[%emt 00:00:07]} d6 {[%clk
01:31:23]} {[%emt 00:00:12]} 4. Nf3 {[%clk 01:30:50]} {[%emt 00:01:18]} Nf6
{[%clk 01:31:19]} {[%emt 00:00:34]} 5. Nc3 {[%clk 01:31:08]} {[%emt 00:00:12]}
O-O {[%clk 01:31:22]} {[%emt 00:00:27]} 6. Bc4 {[%clk 01:30:57]} {[%emt
00:00:41]} Nxe4 {[%clk 01:28:02]} {[%emt 00:03:49]} 7. Bxf7+ {[%clk 01:27:30]}
{[%emt 00:03:58]} Rxf7 {[%clk 01:28:14]} {[%emt 00:00:18]} 8. Nxe4 {[%clk
01:27:54]} {[%emt 00:00:06]} Bg4 {[%clk 01:26:45]} {[%emt 00:01:58]} 9. O-O
{[%clk 01:27:51]} {[%emt 00:00:34]} h6 {[%clk 01:22:55]} {[%emt 00:04:19]} 10.
c3 {[%clk 01:26:11]} {[%emt 00:02:11]} d5 {[%clk 01:20:22]} {[%emt 00:03:02]}
11. Nf2 {[%clk 01:22:02]} {[%emt 00:04:39]} Bxf3 {[%clk 01:19:15]} {[%emt
00:01:38]} 12. Qxf3 {[%clk 01:22:30]} {[%emt 00:00:02]} Nc6 {[%clk 01:18:17]}
{[%emt 00:01:27]} 13. Qg3 {[%clk 01:16:35]} {[%emt 00:06:26]} Qd6 {[%clk
01:15:57]} {[%emt 00:02:50]} 14. Nd3 {[%clk 01:15:37]} {[%emt 00:01:28]} Raf8
{[%clk 01:14:58]} {[%emt 00:01:27]} 15. Qg4 {[%clk 01:09:53]} {[%emt 00:06:15]}
h5 {[%clk 01:13:04]} {[%emt 00:02:23]} 16. Qg3 {[%clk 01:09:04]} {[%emt
00:01:20]} e5 {[%clk 01:12:19]} {[%emt 00:01:15]} 17. dxe5 {[%clk 00:56:40]}
{[%emt 00:12:55]} Nxe5 {[%clk 01:11:51]} {[%emt 00:00:57]} 18. b3 {[%clk
00:51:06]} {[%emt 00:06:05]} Nxd3 {[%clk 01:08:51]} {[%emt 00:03:30]} 19. Qxd3
{[%clk 00:51:26]} {[%emt 00:00:09]} Qc5+ {[%clk 01:08:21]} {[%emt 00:00:59]} 20.
Qe3 {[%clk 00:45:34]} {[%emt 00:06:23]} Qxc3 {[%clk 01:05:30]} {[%emt
00:03:20]} 21. Qxc3 {[%clk 00:45:03]} {[%emt 00:01:03]} Bxc3 {[%clk 01:05:51]}
{[%emt 00:00:09]} 22. Rb1 {[%clk 00:45:31]} {[%emt 00:00:03]} d4 {[%clk
01:05:28]} {[%emt 00:00:52]} 23. Ba3 {[%clk 00:45:19]} {[%emt 00:00:42]} Re8
{[%clk 01:05:08]} {[%emt 00:00:49]} 24. Rbd1 {[%clk 00:45:21]} {[%emt
00:00:28]} b6 {[%clk 01:04:16]} {[%emt 00:01:22]} 25. g3 {[%clk 00:44:41]}
{[%emt 00:01:09]} a5 {[%clk 01:03:42]} {[%emt 00:01:04]} 26. Kg2 {[%clk
00:44:15]} {[%emt 00:00:56]} c5 {[%clk 01:03:46]} {[%emt 00:00:26]} 27. Rf2
{[%clk 00:44:02]} {[%emt 00:00:43]} Kg7 {[%clk 01:01:57]} {[%emt 00:02:18]} 28.
Bb2 {[%clk 00:43:45]} {[%emt 00:00:48]} Bxb2 {[%clk 01:01:14]} {[%emt
00:01:13]} 29. Rxb2 {[%clk 00:44:13]} {[%emt 00:00:02]} Rfe7 {[%clk 01:00:29]}
{[%emt 00:01:14]} 30. Kf2 {[%clk 00:44:03]} {[%emt 00:00:41]} Kf6 {[%clk
01:00:13]} {[%emt 00:00:46]} 31. Rd3 {[%clk 00:43:01]} {[%emt 00:01:33]} Kf5
{[%clk 00:58:57]} {[%emt 00:01:45]} 32. h3 {[%clk 00:37:48]} {[%emt 00:05:43]}
Re3 {[%clk 00:57:45]} {[%emt 00:01:42]} 33. Rbd2 {[%clk 00:37:43]} {[%emt
00:00:36]} Ke4 {[%clk 00:57:00]} {[%emt 00:01:14]} 0-1

[Event "Esbjerg Efterår 2021 - Esbjergmesterskabet"]
[Site "Esbjerg, Denmark"]
[Date "2021.10.23"]
[Round "5.6"]
[White "Mortensen, Henrik"]
[Black "Pedersen, Lars Wilton"]
[Result "1/2-1/2"]
[TimeControl "1.-3. 20 min + 5 sek, 4.-7. 90 min + 30 sek"]
[WhiteElo "1991"]
[BlackElo "1991"]

1. d4 {[%clk 01:30:59]} {[%emt 00:00:01]} e6 {[%clk 01:30:51]} {[%emt
00:00:09]} 2. e4 {[%clk 01:30:46]} {[%emt 00:00:42]} c5 {[%clk 01:31:13]}
{[%emt 00:00:08]} 3. Nf3 {[%clk 01:29:13]} {[%emt 00:02:03]} cxd4 {[%clk
01:31:20]} {[%emt 00:00:24]} 4. Nxd4 {[%clk 01:29:19]} {[%emt 00:00:24]} Nf6
{[%clk 01:31:32]} {[%emt 00:00:18]} 5. Bd3 {[%clk 01:28:14]} {[%emt 00:01:34]}
d6 {[%clk 01:31:15]} {[%emt 00:00:47]} 6. O-O {[%clk 01:26:59]} {[%emt
00:01:45]} a6 {[%clk 01:31:32]} {[%emt 00:00:13]} 7. c4 {[%clk 01:25:57]}
{[%emt 00:01:32]} Be7 {[%clk 01:31:08]} {[%emt 00:00:55]} 8. Nc3 {[%clk
01:26:16]} {[%emt 00:00:11]} Nc6 {[%clk 01:31:13]} {[%emt 00:00:25]} 9. Be3
{[%clk 01:21:17]} {[%emt 00:05:29]} O-O {[%clk 01:30:36]} {[%emt 00:01:07]} 10.
Qe2 {[%clk 01:19:53]} {[%emt 00:01:55]} Bd7 {[%clk 01:29:01]} {[%emt 00:02:05]}
11. Rfd1 {[%clk 01:16:26]} {[%emt 00:03:57]} Nxd4 {[%clk 01:21:26]} {[%emt
00:08:05]} 12. Bxd4 {[%clk 01:16:28]} {[%emt 00:00:28]} Bc6 {[%emt 00:00:36]}
1/2-1/2

[Event "Esbjerg Efterår 2021 - Esbjergmesterskabet"]
[Site "Esbjerg, Denmark"]
[Date "2021.10.23"]
[Round "5.7"]
[White "Dybdal, Frank"]
[Black "Schou-Jørgensen, Jan"]
[Result "1-0"]
[TimeControl "1.-3. 20 min + 5 sek, 4.-7. 90 min + 30 sek"]
[WhiteElo "1687"]
[BlackElo "1722"]

1. c4 {[%clk 01:30:47]} {[%emt 00:00:12]} c6 {[%clk 01:30:44]} {[%emt
00:00:17]} 2. Nc3 {[%clk 01:30:26]} {[%emt 00:00:51]} d5 {[%clk 01:30:02]}
{[%emt 00:01:12]} 3. cxd5 {[%clk 01:30:04]} {[%emt 00:00:51]} cxd5 {[%clk
01:30:15]} {[%emt 00:00:17]} 4. d4 {[%clk 01:29:11]} {[%emt 00:01:22]} e6
{[%clk 01:23:54]} {[%emt 00:06:53]} 5. g3 {[%clk 01:29:10]} {[%emt 00:00:30]}
Nc6 {[%clk 01:22:48]} {[%emt 00:01:37]} 6. Bg2 {[%clk 01:29:10]} {[%emt
00:00:29]} Nf6 {[%clk 01:21:40]} {[%emt 00:01:39]} 7. e3 {[%clk 01:29:00]}
{[%emt 00:00:39]} a6 {[%clk 01:21:04]} {[%emt 00:01:06]} 8. Nge2 {[%clk
01:28:24]} {[%emt 00:01:06]} Bd6 {[%clk 01:19:30]} {[%emt 00:02:05]} 9. O-O
{[%clk 01:26:46]} {[%emt 00:02:07]} O-O {[%clk 01:18:34]} {[%emt 00:01:25]} 10.
a3 {[%clk 01:24:35]} {[%emt 00:02:42]} Rb8 {[%clk 01:10:31]} {[%emt 00:08:33]}
11. e4 {[%clk 01:19:31]} {[%emt 00:05:33]} dxe4 {[%clk 01:07:23]} {[%emt
00:03:39]} 12. Nxe4 {[%clk 01:19:20]} {[%emt 00:00:41]} Nxe4 {[%clk 01:04:41]}
{[%emt 00:03:13]} 13. Bxe4 {[%clk 01:19:18]} {[%emt 00:00:31]} f5 {[%clk
01:04:52]} {[%emt 00:00:17]} 14. Bg2 {[%clk 01:19:07]} {[%emt 00:00:42]} Ne7
{[%clk 00:58:05]} {[%emt 00:07:19]} 15. Nf4 {[%clk 01:14:09]} {[%emt 00:05:27]}
Ng6 {[%clk 00:57:06]} {[%emt 00:01:29]} 16. Nxg6 {[%clk 01:10:36]} {[%emt
00:04:03]} hxg6 {[%clk 00:57:23]} {[%emt 00:00:13]} 17. f4 {[%clk 01:10:08]}
{[%emt 00:00:57]} Qb6 {[%clk 00:54:27]} {[%emt 00:03:17]} 18. Kh1 {[%clk
01:09:57]} {[%emt 00:00:50]} Bd7 {[%clk 00:54:06]} {[%emt 00:00:52]} 19. b4
{[%clk 01:04:44]} {[%emt 00:05:42]} Bc6 {[%clk 00:43:41]} {[%emt 00:10:55]} 20.
d5 {[%clk 01:04:07]} {[%emt 00:01:07]} exd5 {[%clk 00:43:07]} {[%emt 00:01:06]}
21. Bxd5+ {[%clk 01:04:23]} {[%emt 00:00:13]} Kh8 {[%clk 00:41:05]} {[%emt
00:02:32]} 22. Bb2 {[%clk 00:59:29]} {[%emt 00:05:24]} Rbd8 {[%clk 00:40:15]}
{[%emt 00:01:19]} 23. Bxc6 {[%clk 00:56:15]} {[%emt 00:03:45]} Qxc6+ {[%clk
00:40:30]} {[%emt 00:00:15]} 24. Qf3 {[%clk 00:56:29]} {[%emt 00:00:14]} Qe4
{[%clk 00:34:37]} {[%emt 00:06:23]} 25. Rae1 {[%clk 00:53:30]} {[%emt
00:03:30]} Qxf3+ {[%clk 00:28:36]} {[%emt 00:06:32]} 26. Rxf3 {[%clk 00:53:46]}
{[%emt 00:00:14]} Rfe8 {[%clk 00:27:42]} {[%emt 00:01:24]} 27. Rfe3 {[%clk
00:51:44]} {[%emt 00:02:29]} Rxe3 {[%clk 00:27:59]} {[%emt 00:00:13]} 28. Rxe3
{[%clk 00:52:04]} {[%emt 00:00:10]} Kg8 {[%clk 00:28:14]} {[%emt 00:00:15]} 29.
Kg2 {[%clk 00:50:25]} {[%emt 00:02:08]} Bxb4 {[%clk 00:28:32]} {[%emt
00:00:13]} 30. Rb3 {[%clk 00:49:35]} {[%emt 00:01:19]} Bc5 {[%clk 00:24:08]}
{[%emt 00:04:54]} 31. Rxb7 {[%clk 00:37:29]} {[%emt 00:12:36]} Bd4 {[%clk
00:18:49]} {[%emt 00:05:49]} 32. Kh3 {[%clk 00:34:56]} {[%emt 00:03:03]} Bxb2
{[%clk 00:18:11]} {[%emt 00:01:09]} 33. Rxb2 {[%clk 00:35:10]} {[%emt
00:00:15]} Rd3 {[%clk 00:17:30]} {[%emt 00:01:11]} 34. Ra2 {[%clk 00:35:11]}
{[%emt 00:00:30]} Kf7 {[%clk 00:16:58]} {[%emt 00:01:02]} 35. Kh4 {[%clk
00:34:44]} {[%emt 00:00:56]} Kf6 {[%clk 00:16:35]} {[%emt 00:00:54]} 36. Rb2
{[%clk 00:34:58]} {[%emt 00:00:16]} Rd8 {[%clk 00:14:21]} {[%emt 00:02:43]} 37.
Rb6+ {[%clk 00:34:54]} {[%emt 00:00:34]} Kf7 {[%clk 00:14:40]} {[%emt
00:00:11]} 38. Kg5 {[%clk 00:34:51]} {[%emt 00:00:32]} Rd2 {[%clk 00:10:20]}
{[%emt 00:04:51]} 39. Rb7+ {[%clk 00:34:50]} {[%emt 00:00:31]} Kf8 {[%clk
00:06:37]} {[%emt 00:04:13]} 40. Kxg6 {[%clk 00:34:19]} {[%emt 00:01:01]} Rxh2
{[%clk 00:04:52]} {[%emt 00:02:15]} 41. Kxf5 {[%clk 00:34:16]} {[%emt
00:00:32]} Ra2 {[%clk 00:04:44]} {[%emt 00:00:39]} 42. Rb3 {[%clk 00:34:07]}
{[%emt 00:00:39]} a5 {[%clk 00:05:07]} {[%emt 00:00:08]} 43. g4 {[%clk
00:33:18]} {[%emt 00:01:18]} Ke7 {[%clk 00:03:31]} {[%emt 00:02:06]} 44. g5
{[%clk 00:32:57]} {[%emt 00:00:51]} a4 {[%clk 00:02:51]} {[%emt 00:01:11]} 45.
Rd3 {[%clk 00:33:03]} {[%emt 00:00:22]} Ra1 {[%clk 00:02:52]} {[%emt 00:00:31]}
46. Kg6 {[%clk 00:33:05]} {[%emt 00:00:27]} Kf8 {[%clk 00:02:33]} {[%emt
00:00:49]} 47. f5 {[%clk 00:32:12]} {[%emt 00:01:23]} 1-0

[Event "Esbjerg Efterår 2021 - Esbjergmesterskabet"]
[Site "Esbjerg, Denmark"]
[Date "2021.10.23"]
[Round "5.8"]
[White "Bisercic, Zlatan"]
[Black "Pommerencke, Lars"]
[Result "0-1"]
[TimeControl "1.-3. 20 min + 5 sek, 4.-7. 90 min + 30 sek"]
[WhiteElo "1300"]
[BlackElo "1630"]

1. e4 {[%clk 01:30:51]} {[%emt 00:00:09]} d5 {[%clk 01:30:40]} {[%emt
00:00:21]} 2. exd5 {[%clk 01:31:07]} {[%emt 00:00:13]} Qxd5 {[%clk 01:31:03]}
{[%emt 00:00:08]} 3. Nc3 {[%clk 01:31:29]} {[%emt 00:00:08]} Qa5 {[%clk
01:30:58]} {[%emt 00:00:35]} 4. d4 {[%clk 01:30:57]} {[%emt 00:01:02]} c6
{[%clk 01:31:13]} {[%emt 00:00:15]} 5. Nf3 {[%clk 01:28:07]} {[%emt 00:03:20]}
Nf6 {[%clk 01:31:25]} {[%emt 00:00:17]} 6. Bd3 {[%clk 01:27:34]} {[%emt
00:01:04]} Bg4 {[%clk 01:31:24]} {[%emt 00:00:29]} 7. O-O {[%clk 01:27:24]}
{[%emt 00:00:41]} e6 {[%clk 01:31:40]} {[%emt 00:00:11]} 8. Ne4 {[%clk
01:23:12]} {[%emt 00:04:45]} Nbd7 {[%clk 01:31:24]} {[%emt 00:00:45]} 9. Nxf6+
{[%clk 01:22:25]} {[%emt 00:01:18]} Nxf6 {[%clk 01:31:37]} {[%emt 00:00:17]} 10.
c3 {[%clk 01:20:45]} {[%emt 00:02:11]} Qd8 {[%clk 01:31:08]} {[%emt 00:00:58]}
11. h3 {[%clk 01:19:14]} {[%emt 00:02:01]} Bh5 {[%clk 01:31:25]} {[%emt
00:00:12]} 12. g4 {[%clk 01:19:33]} {[%emt 00:00:12]} Bg6 {[%clk 01:29:54]}
{[%emt 00:02:00]} 13. Ne5 {[%clk 01:17:14]} {[%emt 00:02:49]} Bd6 {[%clk
01:29:59]} {[%emt 00:00:24]} 14. Nxg6 {[%clk 01:17:05]} {[%emt 00:00:41]} hxg6
{[%clk 01:30:12]} {[%emt 00:00:16]} 15. Kg2 {[%clk 01:17:03]} {[%emt 00:00:33]}
Bc7 {[%clk 01:30:17]} {[%emt 00:00:26]} 16. Bg5 {[%clk 01:15:39]} {[%emt
00:01:54]} Qd5+ {[%clk 01:30:05]} {[%emt 00:00:41]} 17. f3 {[%clk 01:10:46]}
{[%emt 00:05:24]} Qxg5 {[%clk 01:30:21]} {[%emt 00:00:14]} 18. Rh1 {[%clk
01:05:17]} {[%emt 00:05:58]} Nd5 {[%clk 01:29:31]} {[%emt 00:01:20]} 19. Kf2
{[%clk 00:58:08]} {[%emt 00:07:40]} Bg3+ {[%clk 01:28:24]} {[%emt 00:01:36]}
0-1

[Event "Esbjerg Efterår 2021 - Esbjergmesterskabet"]
[Site "Esbjerg, Denmark"]
[Date "2021.10.23"]
[Round "5.9"]
[White "Christensen, Joel Nødskov"]
[Black "Bekmuhanov, Sauran"]
[Result "0-1"]
[TimeControl "1.-3. 20 min + 5 sek, 4.-7. 90 min + 30 sek"]
[WhiteElo "1404"]
[BlackElo "1623"]

1. d4 {[%clk 01:30:48]} {[%emt 00:00:11]} Nf6 {[%clk 01:30:43]} {[%emt
00:00:18]} 2. c4 {[%clk 01:30:57]} {[%emt 00:00:21]} e6 {[%clk 01:31:12]}
{[%emt 00:00:02]} 3. Nc3 {[%clk 01:31:04]} {[%emt 00:00:23]} d5 {[%clk
01:31:33]} {[%emt 00:00:09]} 4. e3 {[%clk 01:31:10]} {[%emt 00:00:23]} c5
{[%clk 01:29:10]} {[%emt 00:02:53]} 5. Nf3 {[%clk 01:31:09]} {[%emt 00:00:31]}
Nc6 {[%clk 01:29:13]} {[%emt 00:00:28]} 6. cxd5 {[%clk 01:31:08]} {[%emt
00:00:30]} Nxd5 {[%clk 01:29:09]} {[%emt 00:00:34]} 7. a3 {[%clk 01:31:06]}
{[%emt 00:00:32]} cxd4 {[%clk 01:28:47]} {[%emt 00:00:51]} 8. Nxd4 {[%clk
01:31:11]} {[%emt 00:00:24]} Nxc3 {[%clk 01:27:35]} {[%emt 00:02:18]} 9. bxc3
{[%clk 01:31:41]} {[%emt 00:00:26]} e5 {[%clk 01:27:59]} {[%emt 00:00:06]} 10.
Nxc6 {[%clk 01:31:26]} {[%emt 00:00:45]} Qxd1+ {[%clk 01:28:20]} {[%emt
00:00:09]} 11. Kxd1 {[%clk 01:31:39]} {[%emt 00:00:17]} bxc6 {[%clk 01:28:49]}
12. Bb2 {[%clk 01:31:48]} {[%emt 00:00:21]} Be6 {[%clk 01:28:31]} {[%emt
00:00:48]} 13. c4 {[%clk 01:31:41]} {[%emt 00:00:37]} f6 {[%clk 01:28:32]}
{[%emt 00:00:29]} 14. Be2 {[%emt 00:00:44]} Bc5 {[%emt 00:00:19]} 15. Bf3
{[%clk 01:30:18]} {[%emt 00:00:50]} O-O-O+ {[%clk 01:28:35]} {[%emt 00:00:27]}
16. Ke2 {[%clk 01:30:40]} {[%emt 00:00:08]} Bxc4+ {[%clk 01:28:49]} {[%emt
00:00:15]} 17. Ke1 {[%clk 01:30:58]} {[%emt 00:00:13]} Bd5 {[%clk 01:27:56]}
{[%emt 00:01:23]} 18. Rc1 {[%clk 01:30:25]} {[%emt 00:01:03]} Bxf3 {[%clk
01:25:30]} {[%emt 00:02:56]} 19. Rxc5 {[%clk 01:30:37]} {[%emt 00:00:18]} Rd1#
{[%clk 01:25:11]} {[%emt 00:00:48]} 0-1